[Event "Polofinale MCR junioru 2023"]
[Site "Czech Republic"]
[Date "2023.11.18"]
[Round "9.30"]
[White "Andrle, Filip"]
[Black "Urbansky, Stepan"]
[Result "1-0"]
[TimeControl "90 min per 40 moves + 15 min + 30 sec / move from move 1"]
[WhiteFideId "23718749"]
[BlackFideId "23761741"]
[WhiteElo "2005"]
[BlackElo "1675"]

1. e4 {[%clk 01:30:15]} {[%emt 00:00:44]} c5 {[%clk 01:30:51]} {[%emt
00:00:08]} 2. c4 {[%clk 01:29:25]} {[%emt 00:01:21]} Nc6 {[%clk 01:30:48]}
{[%emt 00:00:32]} 3. Nc3 {[%clk 01:29:33]} {[%emt 00:00:22]} Nf6 {[%clk
01:30:52]} {[%emt 00:00:26]} 4. g3 {[%clk 01:28:51]} {[%emt 00:01:13]} d6
{[%clk 01:27:58]} {[%emt 00:03:24]} 5. Bg2 {[%clk 01:25:52]} {[%emt 00:03:29]}
g6 {[%clk 01:26:55]} {[%emt 00:01:32]} 6. Nge2 {[%clk 01:23:34]} {[%emt
00:02:49]} Bg7 {[%clk 01:25:18]} {[%emt 00:02:06]} 7. O-O {[%clk 01:22:38]}
{[%emt 00:01:26]} e5 {[%clk 01:25:15]} {[%emt 00:00:33]} 8. d3 {[%clk
01:22:39]} {[%emt 00:00:29]} O-O {[%clk 01:25:33]} {[%emt 00:00:12]} 9. Rb1
{[%clk 01:10:23]} {[%emt 00:12:46]} Nh5 {[%clk 01:21:30]} {[%emt 00:04:33]} 10.
Nd5 {[%clk 01:06:27]} {[%emt 00:04:26]} f5 {[%clk 01:18:34]} {[%emt 00:03:25]}
11. f4 {[%clk 00:58:34]} {[%emt 00:08:23]} Nf6 {[%clk 01:15:30]} {[%emt
00:03:34]} 12. a3 {[%clk 00:50:14]} {[%emt 00:08:52]} Nxd5 {[%clk 01:03:49]}
{[%emt 00:12:10]} 13. cxd5 {[%clk 00:50:20]} {[%emt 00:00:24]} Nd4 {[%clk
01:02:07]} {[%emt 00:02:11]} 14. b4 {[%clk 00:48:55]} {[%emt 00:01:56]} Nxe2+
{[%clk 01:00:46]} {[%emt 00:01:51]} 15. Qxe2 {[%clk 00:49:10]} {[%emt
00:00:16]} cxb4 {[%clk 01:00:16]} {[%emt 00:01:00]} 16. Rxb4 {[%clk 00:48:31]}
{[%emt 00:01:09]} a5 {[%clk 00:57:33]} {[%emt 00:03:12]} 17. Rb1 {[%clk
00:43:52]} {[%emt 00:05:09]} Rb8 {[%clk 00:55:37]} {[%emt 00:02:26]} 18. Be3
{[%clk 00:34:02]} {[%emt 00:10:20]} b5 {[%clk 00:53:35]} {[%emt 00:02:33]} 19.
fxe5 {[%clk 00:32:01]} {[%emt 00:02:30]} dxe5 {[%clk 00:46:19]} {[%emt
00:07:46]} 20. Ba7 {[%clk 00:27:19]} {[%emt 00:05:12]} Rb7 {[%clk 00:43:26]}
{[%emt 00:03:23]} 21. Bc5 {[%clk 00:27:37]} {[%emt 00:00:11]} Rff7 {[%clk
00:41:12]} {[%emt 00:02:44]} 22. d6 {[%clk 00:25:26]} {[%emt 00:02:42]} Rb8
{[%clk 00:37:29]} {[%emt 00:04:14]} 23. Qa2 {[%clk 00:19:09]} {[%emt 00:06:47]}
Qe8 {[%clk 00:27:45]} {[%emt 00:10:12]} 24. exf5 {[%clk 00:15:30]} {[%emt
00:04:11]} Kh8 {[%clk 00:27:53]} {[%emt 00:00:21]} 25. fxg6 {[%clk 00:15:02]}
{[%emt 00:00:59]} Rxf1+ {[%clk 00:27:43]} {[%emt 00:00:40]} 26. Rxf1 {[%clk
00:15:23]} {[%emt 00:00:09]} hxg6 {[%clk 00:23:13]} {[%emt 00:05:00]} 27. Be4
{[%clk 00:08:17]} {[%emt 00:07:36]} b4 {[%clk 00:17:00]} {[%emt 00:06:42]} 28.
axb4 {[%clk 00:08:03]} {[%emt 00:00:45]} axb4 {[%clk 00:17:07]} {[%emt
00:00:22]} 29. Qa7 {[%clk 00:06:51]} {[%emt 00:01:42]} Qb5 {[%clk 00:12:29]}
{[%emt 00:05:08]} 30. Rf7 {[%clk 00:04:12]} {[%emt 00:03:09]} Rb7 {[%clk
00:12:17]} {[%emt 00:00:42]} 31. Bxb7 {[%clk 00:01:54]} {[%emt 00:02:48]} 1-0

[Event "Polofinale MCR junioru 2023"]
[Site "Czech Republic"]
[Date "2023.11.18"]
[Round "9.31"]
[White "Slaby, Matej"]
[Black "Zezula, Matej"]
[Result "1-0"]
[TimeControl "90 min per 40 moves + 15 min + 30 sec / move from move 1"]
[WhiteFideId "23734876"]
[BlackFideId "23725796"]
[WhiteElo "1940"]
[BlackElo "1666"]

1. e4 {[%clk 01:30:56]} {[%emt 00:00:03]} c5 {[%clk 01:30:53]} {[%emt
00:00:07]} 2. Nf3 {[%clk 01:31:21]} {[%emt 00:00:05]} d6 {[%clk 01:31:06]}
{[%emt 00:00:18]} 3. Bb5+ {[%clk 01:31:45]} {[%emt 00:00:06]} Bd7 {[%clk
01:31:15]} {[%emt 00:00:21]} 4. Bxd7+ {[%clk 01:32:05]} {[%emt 00:00:10]} Qxd7
{[%clk 01:31:30]} {[%emt 00:00:14]} 5. O-O {[%clk 01:31:43]} {[%emt 00:00:52]}
g6 {[%clk 01:31:44]} {[%emt 00:00:17]} 6. c4 {[%clk 01:31:33]} {[%emt
00:00:39]} Bg7 {[%clk 01:31:59]} {[%emt 00:00:15]} 7. d4 {[%clk 01:31:41]}
{[%emt 00:00:22]} cxd4 {[%clk 01:31:46]} {[%emt 00:00:43]} 8. Nxd4 {[%clk
01:32:04]} {[%emt 00:00:07]} Nf6 {[%clk 01:32:07]} {[%emt 00:00:09]} 9. Nc3
{[%clk 01:32:24]} {[%emt 00:00:10]} O-O {[%clk 01:32:25]} {[%emt 00:00:12]} 10.
f3 {[%clk 01:31:42]} {[%emt 00:01:12]} Nc6 {[%clk 01:31:04]} {[%emt 00:01:51]}
11. Be3 {[%clk 01:32:02]} {[%emt 00:00:09]} Rac8 {[%clk 01:24:57]} {[%emt
00:06:38]} 12. b3 {[%clk 01:32:00]} {[%emt 00:00:33]} Rfd8 {[%clk 01:22:10]}
{[%emt 00:03:16]} 13. Qd2 {[%clk 01:22:13]} {[%emt 00:10:18]} Ne5 {[%clk
01:19:30]} {[%emt 00:03:10]} 14. Rac1 {[%clk 01:18:09]} {[%emt 00:04:34]} Ne8
{[%clk 01:05:59]} {[%emt 00:14:01]} 15. Rfd1 {[%clk 01:11:08]} {[%emt
00:07:31]} Nf6 {[%clk 01:05:26]} {[%emt 00:01:04]} 16. h3 {[%clk 01:07:54]}
{[%emt 00:03:43]} Nc6 {[%clk 00:55:11]} {[%emt 00:10:46]} 17. Qf2 {[%clk
01:03:47]} {[%emt 00:04:37]} b6 {[%clk 00:51:05]} {[%emt 00:04:36]} 18. a4
{[%clk 00:58:03]} {[%emt 00:06:14]} Na5 {[%clk 00:50:13]} {[%emt 00:01:22]} 19.
Qa2 {[%clk 00:57:20]} {[%emt 00:01:12]} Qb7 {[%clk 00:48:41]} {[%emt 00:02:02]}
20. Nce2 {[%clk 00:50:11]} {[%emt 00:07:40]} Nd7 {[%clk 00:45:14]} {[%emt
00:03:56]} 21. Rc2 {[%clk 00:43:40]} {[%emt 00:07:01]} Ne5 {[%clk 00:43:54]}
{[%emt 00:01:50]} 22. Bd2 {[%clk 00:42:20]} {[%emt 00:01:51]} Nac6 {[%clk
00:40:56]} {[%emt 00:03:28]} 23. Bc3 {[%clk 00:42:29]} {[%emt 00:00:21]} Nxd4
{[%clk 00:33:00]} {[%emt 00:08:26]} 24. Bxd4 {[%clk 00:42:57]} {[%emt
00:00:01]} Nc6 {[%clk 00:32:49]} {[%emt 00:00:42]} 25. Bc3 {[%clk 00:41:05]}
{[%emt 00:02:21]} Qd7 {[%clk 00:29:14]} {[%emt 00:04:05]} 26. Bxg7 {[%clk
00:40:21]} {[%emt 00:01:14]} Kxg7 {[%clk 00:29:12]} {[%emt 00:00:32]} 27. Qb2+
{[%clk 00:40:02]} {[%emt 00:00:50]} Kg8 {[%clk 00:27:36]} {[%emt 00:02:06]} 28.
h4 {[%clk 00:38:13]} {[%emt 00:02:19]} h5 {[%clk 00:26:06]} {[%emt 00:02:00]}
29. Qc3 {[%clk 00:38:05]} {[%emt 00:00:38]} Ne5 {[%clk 00:25:08]} {[%emt
00:01:28]} 30. Qe3 {[%clk 00:37:30]} {[%emt 00:01:05]} Kh7 {[%clk 00:24:41]}
{[%emt 00:00:56]} 31. Nc3 {[%clk 00:36:00]} {[%emt 00:02:01]} Qe6 {[%clk
00:23:42]} {[%emt 00:01:29]} 32. Nd5 {[%clk 00:33:16]} {[%emt 00:03:15]} Rg8
{[%clk 00:20:26]} {[%emt 00:03:46]} 33. Ra2 {[%clk 00:27:24]} {[%emt 00:06:22]}
Nc6 {[%clk 00:18:10]} {[%emt 00:02:46]} 34. Rc1 {[%clk 00:27:26]} {[%emt
00:00:28]} Na5 {[%clk 00:17:23]} {[%emt 00:01:16]} 35. Rac2 {[%clk 00:27:10]}
{[%emt 00:00:47]} Qe5 {[%clk 00:15:21]} {[%emt 00:02:31]} 36. b4 {[%clk
00:26:47]} {[%emt 00:00:54]} Nb7 {[%clk 00:15:30]} {[%emt 00:00:21]} 37. a5
{[%clk 00:22:32]} {[%emt 00:04:45]} bxa5 {[%clk 00:14:49]} {[%emt 00:01:11]} 38.
Qxa7 {[%clk 00:23:00]} {[%emt 00:00:02]} Rb8 {[%clk 00:14:53]} {[%emt
00:00:26]} 39. bxa5 {[%clk 00:22:52]} {[%emt 00:00:39]} e6 {[%clk 00:13:20]}
{[%emt 00:02:03]} 40. Ne7 {[%clk 00:20:57]} {[%emt 00:02:24]} Rgf8 {[%clk
00:11:37]} {[%emt 00:02:13]} 41. Nc6 {[%clk 00:21:15]} {[%emt 00:00:12]} Qc5+
{[%clk 00:11:53]} {[%emt 00:00:14]} 42. Qxc5 {[%clk 00:21:36]} {[%emt
00:00:09]} Nxc5 {[%clk 00:12:15]} {[%emt 00:00:09]} 43. Nxb8 {[%clk 00:22:01]}
{[%emt 00:00:05]} Rxb8 {[%clk 00:12:43]} {[%emt 00:00:02]} 44. Rd1 {[%clk
00:22:00]} {[%emt 00:00:31]} Ra8 {[%clk 00:12:39]} {[%emt 00:00:33]} 45. Ra2
{[%clk 00:22:23]} {[%emt 00:00:07]} Ra6 {[%clk 00:13:03]} {[%emt 00:00:06]} 46.
Rb1 {[%clk 00:22:29]} {[%emt 00:00:24]} Kg7 {[%clk 00:12:28]} {[%emt 00:01:05]}
47. Rb6 {[%clk 00:21:31]} {[%emt 00:01:27]} Ra8 {[%clk 00:12:51]} {[%emt
00:00:08]} 48. Rxd6 {[%clk 00:21:39]} {[%emt 00:00:22]} Nb7 {[%clk 00:12:47]}
{[%emt 00:00:33]} 49. Rb6 {[%clk 00:21:05]} {[%emt 00:01:04]} Rxa5 {[%clk
00:12:01]} {[%emt 00:01:16]} 50. Rxa5 {[%clk 00:21:31]} {[%emt 00:00:05]} Nxa5
{[%clk 00:12:24]} {[%emt 00:00:06]} 51. c5 {[%clk 00:21:57]} {[%emt 00:00:04]}
Nc4 {[%clk 00:12:34]} {[%emt 00:00:19]} 52. Rb8 {[%clk 00:21:44]} {[%emt
00:00:43]} Ne5 {[%clk 00:12:51]} {[%emt 00:00:14]} 53. f4 {[%clk 00:22:01]}
{[%emt 00:00:12]} Nc6 {[%clk 00:13:14]} {[%emt 00:00:07]} 54. Rb6 {[%clk
00:22:22]} {[%emt 00:00:10]} 1-0

[Event "Polofinale MCR junioru 2023"]
[Site "Czech Republic"]
[Date "2023.11.18"]
[Round "9.32"]
[White "Hrbek, Jachym"]
[Black "Kocman, Patrik"]
[Result "0-1"]
[TimeControl "90 min per 40 moves + 15 min + 30 sec / move from move 1"]
[WhiteFideId "23709138"]
[BlackFideId "23735732"]
[WhiteElo "1913"]
[BlackElo "1478"]

1. e4 {[%clk 01:28:52]} e5 {[%clk 01:30:54]} {[%emt 00:02:14]} 2. Nf3 {[%clk
01:29:00]} {[%emt 00:00:22]} Nc6 {[%clk 01:31:18]} {[%emt 00:00:06]} 3. Bc4
{[%clk 01:29:22]} {[%emt 00:00:07]} Bc5 {[%clk 01:31:41]} {[%emt 00:00:07]} 4.
c3 {[%clk 01:29:40]} {[%emt 00:00:11]} Nf6 {[%clk 01:31:59]} {[%emt 00:00:12]}
5. d3 {[%clk 01:29:56]} {[%emt 00:00:14]} h6 {[%clk 01:31:33]} {[%emt
00:00:56]} 6. Bb3 {[%clk 01:29:56]} {[%emt 00:00:30]} d6 {[%clk 01:31:15]}
{[%emt 00:00:49]} 7. h3 {[%clk 01:29:38]} {[%emt 00:00:47]} O-O {[%clk
01:30:38]} {[%emt 00:01:08]} 8. Nbd2 {[%clk 01:29:15]} {[%emt 00:00:53]} a6
{[%clk 01:28:20]} {[%emt 00:02:49]} 9. Nf1 {[%clk 01:28:17]} {[%emt 00:01:27]}
Be6 {[%clk 01:27:46]} {[%emt 00:01:04]} 10. Bc2 {[%clk 01:27:00]} {[%emt
00:01:46]} Ba7 {[%clk 01:26:46]} {[%emt 00:01:31]} 11. g4 {[%clk 01:25:27]}
{[%emt 00:02:02]} d5 {[%clk 01:23:41]} {[%emt 00:03:37]} 12. Qe2 {[%clk
01:25:16]} {[%emt 00:00:38]} dxe4 {[%clk 01:21:51]} {[%emt 00:02:21]} 13. dxe4
{[%clk 01:25:26]} {[%emt 00:00:16]} b5 {[%clk 01:20:54]} {[%emt 00:01:32]} 14.
Ne3 {[%clk 01:04:24]} {[%emt 00:21:32]} Qd6 {[%clk 01:10:39]} {[%emt 00:10:45]}
15. Nh4 {[%clk 00:50:07]} {[%emt 00:14:47]} Ne7 {[%clk 01:05:38]} {[%emt
00:05:32]} 16. Rg1 {[%clk 00:47:17]} {[%emt 00:03:20]} Nh7 {[%clk 00:59:13]}
{[%emt 00:06:55]} 17. Nef5 {[%clk 00:42:18]} {[%emt 00:05:28]} Nxf5 {[%clk
00:54:46]} {[%emt 00:04:58]} 18. gxf5 {[%clk 00:40:25]} {[%emt 00:02:23]} Bd7
{[%clk 00:53:20]} {[%emt 00:01:56]} 19. Bb3 {[%clk 00:29:02]} {[%emt 00:11:53]}
Kh8 {[%clk 00:49:41]} {[%emt 00:04:08]} 20. Rg6 {[%clk 00:14:59]} {[%emt
00:14:32]} Qe7 {[%clk 00:46:31]} {[%emt 00:03:40]} 21. Bxh6 {[%clk 00:08:16]}
{[%emt 00:07:14]} gxh6 {[%clk 00:43:31]} {[%emt 00:03:30]} 22. f6 {[%clk
00:04:20]} {[%emt 00:04:26]} Nxf6 {[%clk 00:38:43]} {[%emt 00:05:18]} 23. Rxh6+
{[%clk 00:04:08]} {[%emt 00:00:42]} Kg7 {[%clk 00:38:38]} {[%emt 00:00:34]} 24.
O-O-O {[%clk 00:03:09]} {[%emt 00:01:30]} Kxh6 {[%clk 00:35:54]} {[%emt
00:03:15]} 25. Qd2+ {[%clk 00:00:37]} {[%emt 00:03:02]} Kh7 {[%clk 00:34:46]}
{[%emt 00:01:37]} 26. Nf3 {[%clk 00:00:38]} {[%emt 00:00:30]} Nxe4 {[%clk
00:29:37]} {[%emt 00:05:39]} 27. Qe2 {[%clk 00:00:48]} {[%emt 00:00:19]} f5
{[%clk 00:28:50]} {[%emt 00:01:17]} 28. Ng5+ {[%clk 00:00:35]} {[%emt
00:00:43]} Qxg5+ {[%emt 00:00:35]} 0-1

[Event "Polofinale MCR junioru 2023"]
[Site "Czech Republic"]
[Date "2023.11.18"]
[Round "9.33"]
[White "Gregor, Alexandr"]
[Black "Popov, Roman"]
[Result "0-1"]
[TimeControl "90 min per 40 moves + 15 min + 30 sec / move from move 1"]
[WhiteFideId "23735813"]
[BlackFideId "23732580"]
[WhiteElo "1601"]
[BlackElo "1889"]

1. e4 {[%clk 01:30:57]} {[%emt 00:00:02]} c6 {[%clk 01:29:43]} {[%emt
00:01:17]} 2. d4 {[%clk 01:31:19]} {[%emt 00:00:09]} d5 {[%clk 01:30:07]}
{[%emt 00:00:06]} 3. e5 {[%clk 01:31:08]} {[%emt 00:00:41]} Bf5 {[%clk
01:30:15]} {[%emt 00:00:21]} 4. Bd3 {[%clk 01:31:16]} {[%emt 00:00:23]} Bxd3
{[%clk 01:29:14]} {[%emt 00:01:31]} 5. Qxd3 {[%clk 01:31:38]} {[%emt 00:00:08]}
e6 {[%clk 01:28:51]} {[%emt 00:00:52]} 6. Ne2 {[%clk 01:30:17]} {[%emt
00:01:51]} Qb6 {[%clk 01:20:24]} {[%emt 00:08:58]} 7. O-O {[%clk 01:29:56]}
{[%emt 00:00:51]} Ne7 {[%clk 01:08:40]} {[%emt 00:12:14]} 8. f4 {[%clk
01:26:57]} {[%emt 00:03:30]} h5 {[%clk 01:06:22]} {[%emt 00:02:46]} 9. f5
{[%clk 01:17:19]} {[%emt 00:10:09]} Nxf5 {[%clk 00:57:45]} {[%emt 00:09:06]} 10.
Rxf5 {[%clk 01:17:34]} {[%emt 00:00:15]} exf5 {[%clk 00:57:02]} {[%emt
00:01:13]} 11. Qxf5 {[%clk 01:15:52]} {[%emt 00:02:12]} Qc7 {[%clk 00:38:29]}
{[%emt 00:19:02]} 12. e6 {[%clk 01:14:47]} {[%emt 00:01:36]} fxe6 {[%clk
00:32:53]} {[%emt 00:06:06]} 13. Qxe6+ {[%clk 01:14:59]} {[%emt 00:00:17]} Qe7
{[%clk 00:27:41]} {[%emt 00:05:42]} 14. Qc8+ {[%clk 01:15:15]} {[%emt
00:00:15]} Kf7 {[%clk 00:27:20]} {[%emt 00:00:51]} 15. Nbc3 {[%clk 01:15:15]}
{[%emt 00:00:30]} Qd7 {[%clk 00:26:46]} {[%emt 00:01:05]} 16. Qxd7+ {[%clk
01:14:51]} {[%emt 00:00:54]} Nxd7 {[%clk 00:27:14]} {[%emt 00:00:02]} 17. Bg5
{[%clk 01:14:36]} {[%emt 00:00:46]} Be7 {[%clk 00:25:13]} {[%emt 00:02:31]} 18.
Bxe7 {[%clk 01:13:14]} {[%emt 00:01:52]} Kxe7 {[%clk 00:25:16]} {[%emt
00:00:27]} 19. Nf4 {[%clk 01:13:30]} {[%emt 00:00:14]} Kd6 {[%clk 00:20:30]}
{[%emt 00:05:15]} 20. Nce2 {[%clk 01:11:46]} {[%emt 00:02:15]} g5 {[%clk
00:18:05]} {[%emt 00:02:55]} 21. Nh3 {[%clk 01:10:42]} {[%emt 00:01:34]} Rhg8
{[%clk 00:14:38]} {[%emt 00:03:57]} 22. Ng3 {[%clk 01:10:34]} {[%emt 00:00:38]}
h4 {[%clk 00:11:11]} {[%emt 00:03:56]} 23. Nf5+ {[%clk 01:09:56]} {[%emt
00:01:08]} Ke6 {[%clk 00:09:48]} {[%emt 00:01:51]} 24. Nh6 {[%clk 01:09:19]}
{[%emt 00:01:09]} Rg6 {[%clk 00:06:14]} {[%emt 00:04:03]} 25. Re1+ {[%clk
01:09:31]} {[%emt 00:00:19]} Kd6 {[%clk 00:02:20]} {[%emt 00:04:23]} 26. Nf7+
{[%clk 01:09:44]} {[%emt 00:00:17]} Kc7 {[%clk 00:02:41]} {[%emt 00:00:10]} 27.
Nfxg5 {[%clk 01:09:25]} {[%emt 00:00:49]} Rag8 {[%clk 00:02:26]} {[%emt
00:00:44]} 28. Ne6+ {[%clk 01:09:26]} {[%emt 00:00:29]} Kc8 {[%clk 00:02:08]}
{[%emt 00:00:48]} 29. Nef4 {[%clk 01:09:37]} {[%emt 00:00:20]} Rg4 {[%clk
00:01:35]} {[%emt 00:01:03]} 30. Re2 {[%clk 01:08:34]} {[%emt 00:01:33]} Nf6
{[%clk 00:01:11]} {[%emt 00:00:54]} 31. Kf1 {[%clk 01:08:40]} {[%emt 00:00:24]}
Ne4 {[%clk 00:00:38]} {[%emt 00:01:03]} 32. c4 {[%clk 01:09:01]} {[%emt
00:00:10]} Rf8 {[%clk 00:00:42]} {[%emt 00:00:25]} 33. cxd5 {[%clk 01:07:59]}
{[%emt 00:01:32]} Rgxf4+ {[%clk 00:00:54]} {[%emt 00:00:18]} 34. Nxf4 {[%clk
01:08:15]} {[%emt 00:00:15]} Rxf4+ {[%clk 00:01:20]} {[%emt 00:00:03]} 35. Kg1
{[%clk 01:08:21]} {[%emt 00:00:23]} cxd5 {[%clk 00:01:38]} {[%emt 00:00:13]}
0-1

[Event "Polofinale MCR junioru 2023"]
[Site "Czech Republic"]
[Date "2023.11.18"]
[Round "9.34"]
[White "Mrazek, Adam"]
[Black "Jurok, Vojtech"]
[Result "0-1"]
[TimeControl "90 min per 40 moves + 15 min + 30 sec / move from move 1"]
[WhiteFideId "23725010"]
[BlackFideId "23741023"]
[WhiteElo "1643"]
[BlackElo "1801"]

1. c4 {[%clk 01:29:12]} {[%emt 00:01:47]} e5 {[%clk 01:30:43]} {[%emt
00:00:18]} 2. g3 {[%clk 01:29:33]} {[%emt 00:00:09]} d6 {[%clk 01:30:49]}
{[%emt 00:00:24]} 3. Bg2 {[%clk 01:29:56]} {[%emt 00:00:07]} f5 {[%clk
01:30:53]} {[%emt 00:00:26]} 4. Nc3 {[%clk 01:30:19]} {[%emt 00:00:07]} Nf6
{[%clk 01:30:54]} {[%emt 00:00:29]} 5. e3 {[%clk 01:29:55]} {[%emt 00:00:54]}
Be7 {[%clk 01:30:56]} {[%emt 00:00:29]} 6. Nge2 {[%clk 01:30:14]} {[%emt
00:00:12]} O-O {[%clk 01:30:38]} {[%emt 00:00:48]} 7. O-O {[%clk 01:30:37]}
{[%emt 00:00:06]} c6 {[%clk 01:29:12]} {[%emt 00:01:56]} 8. Qb3 {[%clk
01:28:06]} {[%emt 00:03:01]} Kh8 {[%clk 01:27:19]} {[%emt 00:02:23]} 9. d4
{[%clk 01:11:20]} {[%emt 00:17:16]} e4 {[%clk 01:26:47]} {[%emt 00:01:02]} 10.
f3 {[%clk 01:09:17]} {[%emt 00:02:34]} d5 {[%clk 01:25:18]} {[%emt 00:01:59]}
11. fxe4 {[%clk 01:07:42]} {[%emt 00:02:05]} dxe4 {[%clk 01:21:15]} {[%emt
00:04:33]} 12. Nf4 {[%clk 00:59:03]} {[%emt 00:09:10]} Na6 {[%clk 01:20:04]}
{[%emt 00:01:41]} 13. a3 {[%clk 00:57:32]} {[%emt 00:02:01]} Nc7 {[%clk
01:17:07]} {[%emt 00:03:26]} 14. Bd2 {[%clk 00:46:52]} {[%emt 00:11:09]} b6
{[%clk 00:58:13]} {[%emt 00:19:25]} 15. Rfd1 {[%clk 00:34:07]} {[%emt
00:13:16]} Ne6 {[%clk 00:50:01]} {[%emt 00:08:42]} 16. Nce2 {[%clk 00:32:52]}
{[%emt 00:01:45]} g5 {[%clk 00:45:24]} {[%emt 00:05:07]} 17. Nxe6 {[%clk
00:21:58]} {[%emt 00:11:24]} Bxe6 {[%clk 00:45:46]} {[%emt 00:00:07]} 18. Qc2
{[%clk 00:21:50]} {[%emt 00:00:38]} Qe8 {[%clk 00:41:41]} {[%emt 00:04:35]} 19.
b3 {[%clk 00:09:38]} {[%emt 00:12:43]} Qh5 {[%clk 00:35:27]} {[%emt 00:06:43]}
20. Nc3 {[%clk 00:07:30]} {[%emt 00:02:38]} Rad8 {[%clk 00:27:40]} {[%emt
00:08:18]} 21. Rac1 {[%clk 00:05:53]} {[%emt 00:02:07]} Bd6 {[%clk 00:20:06]}
{[%emt 00:08:04]} 22. d5 {[%clk 00:05:16]} {[%emt 00:01:08]} cxd5 {[%clk
00:19:28]} {[%emt 00:01:07]} 23. cxd5 {[%clk 00:04:35]} {[%emt 00:01:11]} Bxd5
{[%clk 00:17:35]} {[%emt 00:02:24]} 24. Nxd5 {[%clk 00:04:38]} {[%emt
00:00:26]} Nxd5 {[%clk 00:17:42]} {[%emt 00:00:22]} 25. Bc3+ {[%clk 00:03:32]}
{[%emt 00:01:36]} Nxc3 {[%clk 00:18:09]} {[%emt 00:00:03]} 26. Qxc3+ {[%clk
00:03:59]} {[%emt 00:00:04]} Kg8 {[%clk 00:18:25]} {[%emt 00:00:14]} 27. Bf1
{[%clk 00:03:58]} {[%emt 00:00:31]} h6 {[%clk 00:13:08]} {[%emt 00:05:46]} 28.
Qa1 {[%clk 00:00:35]} {[%emt 00:03:54]} Bc5 {[%clk 00:11:48]} {[%emt 00:01:50]}
29. Bc4+ {[%clk 00:00:37]} {[%emt 00:00:28]} Kh7 {[%clk 00:11:54]} {[%emt
00:00:24]} 30. Re1 {[%clk 00:00:32]} {[%emt 00:00:35]} Qf3 {[%clk 00:10:28]}
{[%emt 00:01:56]} 31. Qc3 {[%clk 00:00:37]} {[%emt 00:00:25]} f4 {[%clk
00:09:17]} {[%emt 00:01:41]} 32. Be2 {[%emt 00:00:37]} Bxe3+ {[%clk 00:09:22]}
{[%emt 00:00:24]} 0-1